bitfinex-derivatives/quotes_ETHF0:USTF0_20250107
["timestamp","ask_amount","ask_price","bid_price","bid_amount"]
[1736256875137,0.84668625,3641.0,3640.8,44.0078]
[1736256875347,0.41208625,3641.0,3640.9,0.27467]
[1736256875536,0.41208625,3641.0,3640.9,0.69687]
[1736256875939,0.41208625,3641.0,3640.9,0.4222]
[1736256876135,0.41208625,3641.0,3640.9,0.69687]
[1736256876640,0.68674625,3641.0,3640.9,0.69687]
[1736256876941,0.41208625,3641.0,3640.9,0.4222]
[1736256877142,0.68674625,3641.0,3640.8,44.28247]
[1736256877343,0.41208625,3641.0,3640.9,0.27467]
[1736256879146,0.68674625,3641.0,3640.8,44.28247]
[1736256879350,0.41208625,3641.0,3640.8,44.28247]
[1736256879846,0.68674625,3641.0,3640.8,44.28247]
[1736256880644,0.41208625,3640.9,3640.8,44.28247]
[1736256882242,0.68675625,3640.9,3640.8,44.0078]
[1736256882447,0.27467,3640.9,3640.8,44.0078]
[1736256883947,0.68675625,3640.9,3640.8,44.0078]
[1736256884548,0.41208625,3640.9,3640.8,44.0078]
[1736256884751,0.41208625,3640.9,3640.8,44.28247]
[1736256885047,0.68675625,3640.9,3640.8,44.0078]
[1736256885545,0.41208625,3640.9,3640.8,44.28247]
[1736256885849,0.68675625,3640.9,3640.8,44.0078]
[1736256886744,2.88886133,3640.9,3640.8,44.0078]
[1736256887450,2.88886133,3640.9,3640.8,3.2078]
[1736256888151,7.19419309,3640.9,3640.8,3.2078]
[1736256888651,13.9356228,3640.9,3640.8,3.2078]
[1736256890846,9.63029104,3640.9,3640.8,3.2078]
[1736256893348,14.49364034,3640.9,3640.8,3.2078]
[1736256893660,0.2747,3640.5,3640.4,0.27469]
[1736256893959,2.47680508,3640.5,3640.4,41.07469]
[1736256894849,6.92215884,3640.5,3640.4,41.07469]
[1736256895054,7.19685884,3640.5,3640.4,41.07469]
[1736256896958,7.19685884,3640.5,3640.4,41.0747]
[1736256897447,7.19685884,3640.5,3640.4,40.8]
[1736256897644,2.88889133,3640.5,3640.4,40.8]
[1736256897956,0.2747,3640.4,3640.3,3.2078]
[1736256898253,0.7064,3640.4,3640.3,44.0078]
[1736256900259,1.11848625,3640.4,3640.3,44.0078]
[1736256900757,1.11848625,3640.4,3640.3,3.2078]
[1736256902147,1.11848625,3640.4,3639.2,8.91829646]
[1736256902148,1.11848625,3640.4,3639.5,3.2078]
[1736256902149,0.27476,3639.6,3639.5,3.2078]
[1736256902352,0.27476,3639.6,3639.5,44.0078]
[1736256902353,2.47686508,3639.6,3639.5,44.0078]
[1736256902551,2.47686508,3639.6,3639.5,40.8]
[1736256903657,7.20744065,3639.6,3639.5,40.8]
[1736256904055,6.93268065,3639.6,3638.9,3.2078]
[1736256904259,2.47691508,3639.0,3638.9,3.2078]
[1736256904763,2.47691508,3639.0,3638.9,44.0078]
[1736256905155,2.47691508,3639.0,3638.9,3.2078]
[1736256906567,2.88900133,3639.0,3638.9,3.2078]
[1736256907868,2.61419133,3639.0,3638.6,41.07484]
[1736256908172,0.27482,3638.9,3638.7,0.27483]
[1736256908673,2.61419133,3639.0,3638.6,41.07484]
[1736256908874,0.27482,3638.9,3638.6,41.07483]
[1736256909174,2.61419133,3639.0,3638.6,40.8]
[1736256909175,0.27483,3638.8,3638.6,40.8]
[1736256909375,5.71003582,3639.0,3638.7,0.27483]
[1736256910270,0.27482,3638.9,3638.6,41.53223]
[1736256910571,5.43522582,3639.0,3638.6,41.2574]
[1736256910768,0.27482,3638.8,3638.6,41.2574]
[1736256911371,0.27483,3638.7,3638.6,40.8]
[1736256911570,2.47693508,3638.7,3638.6,40.8]
[1736256911765,2.20210508,3638.7,3638.2,0.4574]
[1736256911963,2.20210508,3638.7,3637.9,6.44099138]
[1736256911964,0.27489,3638.0,3637.9,6.44099138]
[1736256912170,2.47699508,3638.0,3637.9,6.44099138]
[1736256913464,2.47699508,3638.0,3637.7,40.8]
[1736256913465,2.20210508,3638.0,3637.7,40.8]
[1736256913671,0.2749,3637.9,3637.7,40.8]
[1736256913876,0.2749,3637.8,3637.7,40.8]
[1736256914172,0.7001,3637.8,3637.7,40.8]
[1736256914567,2.20210508,3638.0,3637.7,0.27491]
[1736256914770,2.20210508,3638.0,3637.9,0.27489]
[1736256914970,2.20210508,3638.0,3637.9,40.8]
[1736256915872,2.47699508,3638.0,3637.9,40.8]
[1736256916372,2.20210508,3638.0,3637.9,40.8]
[1736256917167,2.47699508,3638.0,3637.9,40.8]
[1736256917475,2.20210508,3638.0,3637.9,41.07489]
[1736256917876,2.47699508,3638.0,3637.9,40.8]
[1736256918280,2.20210508,3638.0,3637.9,40.8]
[1736256918875,2.20210508,3638.0,3637.9,41.07489]
[1736256919379,2.20210508,3638.3,3638.2,0.27487]
[1736256920575,2.20210508,3638.3,3638.1,0.27487]
[1736256920774,2.20210508,3638.3,3638.0,3.6545]
[1736256920775,2.20210508,3638.3,3638.0,3.92938]
[1736256920974,2.20210508,3638.3,3638.1,0.27487]
[1736256921474,2.20210508,3638.3,3638.0,3.6545]
[1736256921475,2.47697508,3638.3,3638.0,3.92938]
[1736256921981,0.4152,3638.2,3638.0,3.92938]
[1736256922183,0.4152,3638.2,3638.0,3.6545]
[1736256922380,0.4152,3638.2,3638.0,3.92938]
[1736256923679,0.4152,3638.2,3638.1,0.27488]
[1736256925473,5.40990508,3638.6,3638.1,0.27488]
[1736256925675,0.27486,3638.4,3638.2,0.27487]
[1736256925878,0.27486,3638.4,3638.1,0.27487]
[1736256926480,0.4353,3638.3,3638.1,0.27487]
[1736256926678,0.4353,3638.3,3638.2,0.27487]
[1736256927481,0.4541,3638.5,3638.4,0.27485]
[1736256927687,2.15450254,3638.8,3638.7,0.27483]
[1736256928076,2.15450254,3638.8,3638.7,40.8]
[1736256928381,0.27485,3638.5,3638.4,3.2078]
[1736256928687,0.27485,3638.5,3638.4,3.48265]
[1736256928688,2.20210508,3638.5,3638.4,3.48265]
[1736256929984,2.47693508,3638.8,3638.5,0.27484]
[1736256930280,2.20210508,3638.8,3638.6,0.27483]
[1736256930489,2.47692508,3638.8,3638.6,0.27483]
[1736256930683,2.20210508,3638.8,3638.5,0.8801]
[1736256930988,2.47693508,3638.8,3638.6,0.27483]
[1736256931181,2.47693508,3638.8,3638.5,1.15494]
[1736256931382,0.27484,3638.6,3638.4,3.48265]
[1736256931683,0.27484,3638.6,3638.4,0.27485]
[1736256931987,0.4491,3638.5,3638.4,0.27485]
[1736256934188,2.15450254,3638.9,3638.4,3.2078]
[1736256934383,2.15450254,3638.9,3638.8,3.2078]
[1736256934581,2.15450254,3638.9,3638.8,3.48262]
[1736256935386,0.27484,3638.6,3638.3,3.48266]
[1736256935587,2.20210508,3638.4,3638.3,3.48266]
[1736256936091,2.93145508,3638.4,3638.3,3.2078]
[1736256936479,2.65660508,3638.4,3638.3,3.2078]
[1736256936680,2.93145508,3638.4,3638.3,3.2078]
[1736256936989,2.65660508,3638.4,3638.3,3.48266]
[1736256938479,2.65660508,3638.4,3638.3,3.2078]
[1736256938983,2.65660508,3638.4,3638.3,3.48266]
[1736256939590,0.4545,3638.4,3638.3,3.48266]
[1736256942089,2.15450254,3638.5,3638.4,0.27485]
[1736256942285,3.23312074,3638.7,3638.4,0.4307]
[1736256942488,3.23312074,3638.7,3638.6,0.27484]
[1736256943783,2.59654356,3638.8,3638.7,0.27483]
[1736256944079,2.59654356,3638.8,3638.7,3.48263]
[1736256944978,0.4407,3638.8,3638.7,44.28263]
[1736256948994,0.4407,3638.8,3638.7,7.79600765]
[1736256950284,0.85287431,3638.8,3638.7,3.48263]
[1736256950681,0.4407,3638.8,3638.7,3.48263]
[1736256953388,2.20210508,3639.9,3638.8,0.68707]
[1736256953593,0.4518,3639.5,3639.4,0.27478]
[1736256954190,0.4518,3639.5,3639.4,41.07478]
[1736256955496,0.4386,3639.7,3639.4,40.8]
[1736256955699,0.4352,3640.0,3639.6,2.20210508]
[1736256955999,0.4352,3640.0,3639.9,3.48254]
[1736256956394,0.4352,3640.0,3639.9,44.28254]
[1736256957891,0.8377,3640.4,3640.3,0.27471]
[1736256958192,0.4379,3640.4,3640.3,3.48251]
[1736256960098,1.3062,3640.4,3640.3,3.48251]
[1736256961406,6.59194983,3640.4,3640.3,3.48251]
[1736256962203,1.3062,3640.4,3640.3,3.48251]
[1736256963603,1.71834281,3640.4,3640.3,3.48251]
[1736256965003,6.02971691,3640.4,3640.3,3.48251]
[1736256968695,1.71834281,3640.4,3640.3,3.48251]
[1736256969003,0.85004281,3640.4,3640.3,3.48251]
[1736256969200,1.30624281,3640.4,3640.3,3.48251]
[1736256969600,1.30624281,3640.4,3640.3,44.28251]
[1736256972002,1.76454281,3640.4,3640.3,44.28251]
[1736256972706,1.76454281,3640.4,3640.3,3.48251]
[1736256973209,1.76454281,3640.4,3640.3,44.28251]
[1736256974104,1.76454281,3640.4,3640.3,41.07471]
[1736256974305,1.76454281,3640.4,3640.3,44.28251]
[1736256976202,0.85004281,3640.4,3640.3,44.28251]
[1736256976598,0.41214281,3640.4,3640.3,44.28251]
[1736256976810,0.41214281,3640.4,3640.3,46.48461508]
[1736256977010,0.41214281,3640.4,3640.3,46.52461508]
[1736256977510,3.23047977,3640.6,3640.5,0.2747]
[1736256978808,2.15264053,3640.7,3640.6,0.27469]
[1736256982505,3.06084053,3640.8,3640.7,0.27468]
[1736256982707,3.06084053,3640.8,3640.7,3.48248]
[1736256983203,5.26294561,3640.8,3640.7,3.48248]
[1736256983405,5.26294561,3640.8,3640.7,3.2078]
[1736256983606,5.53761561,3640.8,3640.7,3.2078]
[1736256984708,3.79708755,3640.8,3640.7,3.2078]
[1736256986213,8.10846165,3640.8,3640.7,3.2078]
[1736256986714,0.27469,3640.7,3640.4,0.2747]
[1736256986909,0.69889,3640.7,3640.4,0.2747]
[1736256987103,0.2747,3640.5,3640.3,44.28251]
[1736256987308,2.47680508,3640.5,3640.3,44.2825]
[1736256987509,2.20210508,3640.5,3640.3,44.2825]
[1736256987709,2.20210508,3640.5,3640.4,0.2747]
[1736256988111,3.27210508,3640.5,3639.9,3.2078]
[1736256988314,0.27474,3639.9,3639.5,3.2078]
[1736256988513,0.8573,3639.8,3639.7,0.27476]
[1736256988815,1.2878,3639.8,3639.6,41.07476]
[1736256989712,1.2878,3639.8,3639.7,0.27476]
[1736256991914,1.70001271,3639.8,3639.6,41.07476]
[1736256992315,1.70001271,3639.8,3639.6,40.8]
[1736256992512,1.70001271,3639.8,3639.7,0.27476]
[1736256994917,0.83681271,3639.8,3639.7,0.27476]
[1736256995110,0.83681271,3639.8,3639.7,0.73356]
[1736256995312,0.83681271,3639.8,3639.7,1.16056]
[1736256997519,0.83681271,3639.8,3639.7,0.27476]
[1736256999425,0.83681271,3639.8,3639.6,40.8]
[1736256999620,0.4496,3639.7,3639.6,41.07476]
[1736257000627,5.17025823,3639.7,3639.6,41.07476]
[1736257002024,5.17025823,3639.7,3639.6,40.8]
[1736257002915,5.17025823,3639.7,3639.6,41.07476]
[1736257003122,5.17025823,3639.7,3639.6,40.8]
[1736257004525,5.44501823,3639.7,3639.6,40.8]
[1736257005228,5.17025823,3639.7,3639.6,40.8]
[1736257005621,5.44501823,3639.7,3639.6,40.8]
[1736257006621,5.17025823,3639.7,3639.6,41.07476]
[1736257009726,5.44501823,3639.7,3639.6,40.8]
[1736257009927,5.17025823,3639.7,3639.6,0.27476]
[1736257010733,5.17025823,3639.7,3639.5,44.0078]
[1736257011030,0.4608,3639.6,3639.5,44.28257]
[1736257012023,1.14777271,3639.6,3639.5,44.0078]
[1736257013328,3.34987779,3639.6,3639.5,44.0078]
[1736257014334,0.87301271,3639.6,3639.5,44.0078]
[1736257014529,5.18419179,3639.6,3639.5,44.28257]
[1736257015727,0.87301271,3639.6,3639.5,44.28257]
[1736257016231,0.87301271,3639.6,3639.5,41.07477]
[1736257016432,0.87301271,3639.6,3639.5,44.28257]
[1736257016835,0.4608,3639.6,3639.5,44.28257]
[1736257017834,0.73556,3639.6,3639.5,44.0078]
[1736257018435,1.14778263,3639.6,3639.5,44.0078]
[1736257018634,0.87302263,3639.6,3639.5,44.28257]
[1736257020936,0.87302263,3639.6,3639.5,44.0078]
[1736257021124,0.87302263,3639.6,3639.5,44.28257]
[1736257021736,0.87302263,3639.6,3639.5,41.07477]
[1736257021938,1.14778263,3639.6,3639.5,44.0078]
[1736257022137,1.14778263,3639.6,3639.5,3.2078]
[1736257022435,3.34988771,3639.6,3639.5,3.2078]
[1736257025935,7.94496701,3639.6,3639.5,3.2078]
[1736257026136,7.94496701,3639.6,3639.5,3.48257]
[1736257026938,5.74286193,3639.6,3639.5,3.48257]
[1736257027739,0.87302263,3639.6,3639.5,0.27477]
[1736257028036,0.87302263,3639.6,3639.4,44.0078]
[1736257028239,0.87302263,3639.6,3639.4,44.28258]
[1736257028942,0.41222263,3639.5,3639.4,44.28258]
[1736257030340,5.28502608,3639.5,3639.4,44.28258]
[1736257034040,10.67293708,3639.5,3639.4,44.28258]
[1736257035442,11.66969848,3639.5,3639.4,44.28258]
[1736257038344,6.28178748,3639.5,3639.4,44.28258]
[1736257039644,5.28502608,3639.5,3639.4,44.28258]
[1736257040142,5.28502608,3639.5,3639.4,44.71078]
[1736257040939,1.82792609,3639.5,3639.4,44.71078]
[1736257041148,5.40206753,3639.6,3639.5,0.27477]
[1736257041338,5.40206753,3639.6,3639.5,1.2715314]
[1736257041841,5.40206753,3639.6,3639.5,0.27477]
[1736257042144,5.40206753,3639.6,3639.5,1.2715314]
[1736257042352,0.9967614,3639.8,3639.7,0.27476]
[1736257042353,4.32117719,3639.8,3639.7,0.27476]
[1736257043641,2.48281661,3640.3,3639.7,0.27476]
[1736257043642,5.40206753,3640.1,3639.7,0.27476]
[1736257043943,0.4338,3640.0,3639.9,0.27474]
[1736257044141,0.4338,3640.0,3639.9,3.48254]
[1736257045141,0.4338,3640.0,3639.9,3.2078]
[1736257045443,2.91662661,3640.0,3639.7,0.27476]
[1736257045647,0.4462,3639.9,3639.8,3.2078]
[1736257045846,0.72094,3639.9,3639.8,3.2078]
[1736257046045,0.4462,3639.9,3639.8,3.2078]
[1736257046543,0.4462,3639.9,3639.8,3.48255]
[1736257047949,0.4462,3639.9,3639.8,3.2078]
[1736257049646,0.4462,3639.9,3639.8,3.48255]
[1736257049847,0.4462,3639.9,3639.8,3.2078]
[1736257050449,0.4462,3639.9,3639.8,3.48255]
[1736257051145,0.4462,3639.9,3639.8,44.28255]
[1736257051347,5.49958621,3639.9,3639.8,44.0078]
[1736257051547,5.22484621,3639.9,3639.8,44.28255]
[1736257055146,5.22484621,3639.9,3639.8,41.07475]
[1736257057149,5.67484621,3639.9,3639.8,41.07475]
[1736257058551,4.77864621,3639.9,3639.8,41.07475]
[1736257059148,4.21357621,3639.9,3639.8,48.28284661]
[1736257059350,7.54307541,3640.9,3639.8,49.38183661]
[1736257059351,5.4012352,3640.2,3639.8,49.38183661]
[1736257059653,1.76942035,3640.2,3640.1,5.69062661]
[1736257059850,1.05410035,3640.2,3640.1,6.80062661]
[1736257060052,0.4494,3641.4,3640.1,52.32589661]
[1736257060264,0.4494,3641.4,3641.3,3.48244]
[1736257060448,0.4494,3641.4,3640.9,3.2078]
[1736257060957,0.72403,3641.4,3641.3,40.8]
[1736257061159,0.4494,3641.4,3641.3,40.8]
[1736257061362,0.4494,3641.4,3640.9,3.2078]
[1736257061561,0.27466,3641.0,3640.9,3.2078]
[1736257061858,0.27466,3641.0,3640.0,2.20809661]
[1736257061859,0.27469,3640.7,3640.5,3.2078]
[1736257062163,0.27468,3640.7,3640.5,9.67483082]
[1736257063560,0.41203057,3640.6,3640.5,3.2078]
[1736257063859,0.41203057,3640.6,3640.5,3.4825]
[1736257064253,0.41203057,3640.6,3640.5,3.2078]
[1736257066858,0.41203057,3640.6,3640.5,3.4825]
[1736257067160,0.41203057,3640.6,3640.5,3.2078]
[1736257067959,0.41203057,3640.6,3640.5,3.4825]
[1736257068258,0.41203057,3640.6,3640.5,3.2078]
[1736257069157,0.68672057,3640.6,3640.5,3.2078]
[1736257069565,0.27472,3640.2,3639.8,4.30950421]
[1736257069763,3.6598,3640.1,3639.8,4.30950421]
[1736257069962,0.27474,3639.9,3639.8,4.30950421]
[1736257070166,0.27474,3639.9,3639.8,45.10950421]
[1736257070368,0.27474,3639.9,3639.8,40.8]
[1736257071860,0.68677057,3639.9,3639.8,40.8]
[1736257072662,1.14007057,3639.9,3639.8,40.8]
[1736257074463,5.45713862,3639.9,3639.8,40.8]
[1736257076271,0.27476,3639.7,3639.6,3.2078]
[1736257076662,0.27476,3639.7,3639.6,44.0078]
[1736257077064,0.68679057,3639.7,3639.6,44.0078]
[1736257077264,0.68679057,3639.7,3639.6,3.2078]
[1736257077671,0.68679057,3639.7,3639.6,44.0078]
[1736257078573,5.00385862,3639.7,3639.6,44.0078]
[1736257081282,0.27476,3639.7,3639.6,44.0078]
[1736257082879,5.00013868,3639.7,3639.6,44.0078]
[1736257083977,5.00013868,3639.7,3639.6,40.8]
[1736257085679,0.68699252,3639.7,3639.6,40.8]
[1736257087975,0.41223252,3639.7,3639.1,3.2078]
[1736257088276,0.27479,3639.2,3639.1,3.2078]
[1736257088477,0.27479,3639.2,3639.1,44.0078]
[1736257091375,0.68707114,3639.2,3639.1,44.0078]
[1736257092678,0.2748,3639.1,3639.0,0.45]
[1736257092874,0.2748,3639.1,3638.6,3.2078]
[1736257092875,0.27483,3638.7,3638.6,3.2078]
[1736257093074,0.27483,3638.7,3638.6,44.0078]
[1736257094681,3.92010548,3638.7,3638.6,44.0078]
[1736257095383,0.27489,3638.0,3637.9,3.2078]
[1736257095579,0.27489,3638.0,3637.9,4.1012]
[1736257095780,0.27489,3638.0,3637.9,44.9012]
[1736257102987,0.27489,3638.0,3637.9,44.443]
[1736257103189,0.27489,3638.0,3637.9,41.2352]
[1736257111803,2.15320541,3638.3,3637.9,44.443]
[1736257111999,2.42807541,3638.3,3638.1,0.27488]
[1736257112198,2.42807541,3638.3,3638.0,0.71088]
[1736257112800,0.27487,3638.3,3638.0,0.71088]
[1736257113101,0.27487,3638.2,3638.0,0.436]
[1736257113494,0.4352,3638.5,3638.0,0.436]
[1736257113890,0.27488,3638.2,3638.0,0.436]
[1736257114801,2.58840541,3638.5,3638.0,0.436]
[1736257115001,0.27488,3638.1,3638.0,0.436]
[1736257115193,2.58840541,3638.5,3637.9,41.2352]
[1736257115194,0.27489,3638.0,3637.9,41.2352]
[1736257115397,0.27489,3638.0,3637.9,0.4352]
[1736257115896,0.27489,3638.0,3637.9,41.2352]
[1736257116597,2.42809541,3638.0,3637.9,40.8]
[1736257117699,0.27491,3637.7,3637.6,0.4273]
[1736257118095,0.27491,3637.7,3637.6,41.2273]
[1736257123202,0.27491,3637.7,3637.6,44.4351]
[1736257126799,0.27491,3637.7,3637.2,2.20809661]
[1736257126800,0.27494,3637.3,3637.2,3.2078]
[1736257128611,0.70334,3637.3,3637.2,3.2078]
[1736257129512,2.85654541,3637.3,3637.2,44.0078]
[1736257131112,0.70334,3637.3,3637.2,44.0078]
[1736257133707,3.22980812,3637.4,3637.2,44.0078]
[1736257133911,3.22980812,3637.4,3637.3,0.27494]
[1736257134612,3.22980812,3637.4,3637.3,41.07494]
[1736257134809,3.22980812,3637.4,3637.3,40.8]
[1736257135123,2.43038249,3637.6,3637.3,41.07494]
[1736257135414,0.27492,3637.5,3637.3,40.8]
[1736257135616,2.15546249,3637.6,3637.3,40.8]
[1736257135813,0.27493,3637.5,3637.3,40.8]
[1736257136210,2.43039249,3637.5,3637.3,40.8]
[1736257136405,2.15546249,3637.5,3637.3,40.8]
[1736257136715,2.43038249,3637.5,3637.3,40.8]
[1736257137312,2.15546249,3637.4,3637.3,40.8]
[1736257138615,0.27492,3637.5,3637.3,40.8]
[1736257138806,0.27493,3637.5,3637.3,40.8]
[1736257139009,3.22980812,3637.6,3637.3,40.8]
[1736257139210,3.50472812,3637.6,3637.3,41.07493]
[1736257139919,3.22980812,3637.6,3637.3,40.8]
[1736257140215,3.22980812,3637.5,3637.3,41.07494]
[1736257140716,3.22980812,3637.5,3637.3,40.8]
[1736257140919,3.22980812,3637.5,3637.4,2.48302661]
[1736257141520,3.22980812,3637.5,3637.4,40.8]
[1736257141820,0.27493,3637.4,3637.2,3.2078]
[1736257142119,3.22980812,3637.5,3637.3,40.8]
[1736257142314,0.70873,3637.4,3637.3,41.2213]
[1736257142526,0.4338,3637.4,3637.3,41.2213]
[1736257143117,0.70873,3637.4,3637.3,41.2213]
[1736257143524,4.35982161,3637.4,3637.3,41.2213]
[1736257144326,6.56791822,3637.4,3637.3,40.8]
[1736257145136,6.56791822,3637.4,3636.8,6.46543289]
[1736257145137,0.27497,3636.9,3636.8,7.51808859]
[1736257145628,0.27497,3636.9,3636.8,48.31808859]
[1736257145931,1.16947,3636.9,3636.8,48.31808859]
[1736257146325,1.58191695,3636.9,3636.8,44.0078]
[1736257149932,1.13871695,3636.9,3636.8,44.0078]
[1736257150327,4.37544211,3636.9,3636.8,44.0078]
[1736257152135,3.96299516,3636.9,3636.8,44.0078]
[1736257154233,0.72627,3636.9,3636.8,44.0078]
[1736257160939,0.72627,3636.9,3636.8,40.8]
[1736257161236,0.72627,3636.9,3636.8,44.0078]
[1736257162231,1.14627,3636.9,3636.8,44.0078]
[1736257163231,4.38299516,3636.9,3636.8,44.0078]
[1736257163430,5.38122546,3636.9,3636.8,44.0078]
[1736257164835,4.10802516,3636.9,3636.8,44.0078]
[1736257165034,3.65672516,3636.9,3636.8,45.2810103]
[1736257165535,3.65672516,3636.9,3636.8,44.28278]
[1736257166037,2.57771389,3636.9,3636.8,44.28278]
[1736257168830,2.57771389,3636.9,3636.8,41.07498]
[1736257169033,2.57771389,3636.9,3636.8,44.28278]
[1736257169237,2.57771389,3636.9,3636.8,45.2810103]
[1736257169832,2.57771389,3636.9,3636.8,42.0732103]
[1736257170235,2.57771389,3636.9,3636.8,45.2810103]
[1736257171439,0.42,3636.9,3636.8,45.2810103]
[1736257174538,0.42,3636.9,3636.8,42.0732103]
[1736257174734,0.42,3636.9,3636.8,45.2810103]
[1736257181946,3.65672516,3636.9,3636.8,45.2810103]
[1736257182848,3.65672516,3636.9,3636.8,46.46527801]
[1736257183350,0.42,3636.9,3636.8,46.46527801]
[1736257185552,3.66229585,3636.9,3636.8,46.46527801]
[1736257186951,4.07478969,3636.9,3636.8,46.46527801]
[1736257187257,3.65478969,3636.9,3636.8,53.47527801]
[1736257187450,3.65478969,3636.9,3636.8,48.47527801]
[1736257187656,3.41967028,3636.9,3636.8,48.47527801]
[1736257187950,2.1622156,3637.3,3637.2,0.27495]
[1736257188157,2.1622156,3637.3,3637.2,5.66524801]
[1736257189149,2.1622156,3637.3,3637.2,8.31338508]
[1736257190054,2.1622156,3637.3,3637.2,7.04020478]
[1736257190255,0.27494,3637.3,3637.2,3.2078]
[1736257190757,0.27494,3637.3,3637.1,4.32070936]
[1736257191054,0.9982303,3637.2,3637.1,4.32070936]
[1736257191257,0.9982303,3637.2,3636.8,44.0078]
[1736257191457,0.9982303,3637.2,3637.0,0.27496]
[1736257192658,4.73649212,3637.1,3637.0,0.27496]
[1736257195454,4.73649212,3637.1,3637.0,1.45922771]
[1736257195656,0.41245321,3637.1,3637.0,1.45922771]
[1736257196760,2.16172676,3637.1,3637.0,9.61658344]
[1736257197953,2.16172676,3637.1,3637.0,5.77993707]
[1736257200568,2.16172676,3637.1,3637.0,4.59566936]
[1736257200955,2.16172676,3637.1,3637.0,5.77993707]
[1736257201968,2.16172676,3637.1,3637.0,1.45922771]
[1736257202364,0.8916539,3637.1,3637.0,42.25922771]
[1736257202565,1.9975787,3637.4,3637.3,0.27494]
[1736257202759,0.4547,3638.0,3637.4,0.27493]
[1736257202760,0.98546454,3637.5,3637.4,0.27493]
[1736257202966,0.98546454,3637.5,3637.4,5.1913906]
[1736257203160,0.98546454,3637.5,3637.4,6.37565831]
[1736257203361,0.98546454,3637.5,3637.4,46.17742801]
[1736257204471,0.8791,3638.0,3637.4,58.50985207]
[1736257204671,0.8791,3638.0,3637.9,4.4809203]
[1736257205368,0.8791,3638.0,3637.9,5.69262878]
[1736257209270,0.4244,3638.0,3637.9,5.69262878]
[1736257209572,0.8685,3638.4,3638.3,0.27486]
[1736257209780,0.8685,3638.4,3638.3,2.48479878]
[1736257209973,0.8685,3638.4,3638.3,46.49259878]
[1736257210659,0.449,3638.4,3638.3,47.50259878]
[1736257211271,0.16169453,3638.7,3638.6,0.27484]
[1736257211467,5.40382642,3639.3,3639.2,0.27479]
[1736257211667,5.40382642,3639.3,3639.2,5.69252878]
[1736257211872,5.40382642,3639.3,3639.2,46.49252878]
[1736257212372,0.4486,3639.6,3639.5,0.27477]
[1736257212564,0.4486,3639.6,3639.3,0.27478]
[1736257212875,0.71147,3639.5,3639.2,44.0078]
[1736257213074,2.64663878,3639.5,3639.2,40.8]
[1736257213267,0.27479,3639.3,3638.5,4.58530981]
[1736257213468,0.27481,3639.1,3638.6,0.27484]
[1736257213870,0.27481,3639.1,3638.7,40.8]
[1736257214072,5.85443878,3639.5,3638.7,40.8]
[1736257214273,0.2748,3639.2,3638.7,41.07483]
[1736257215478,0.4338,3639.4,3638.7,41.07483]
[1736257215776,0.2748,3639.2,3638.7,41.07483]
[1736257215974,0.2748,3639.2,3638.8,0.27482]
[1736257216279,0.2748,3639.2,3638.7,40.8]
[1736257216470,0.2748,3639.2,3638.7,41.07483]
[1736257216670,0.2748,3639.1,3638.7,41.07483]
[1736257216867,2.20993878,3639.2,3638.7,40.8]
[1736257217075,0.4338,3639.4,3638.7,40.8]
[1736257217076,2.20993878,3638.9,3638.7,40.8]
[1736257217273,0.71882,3638.8,3638.7,40.8]
[1736257217480,1.16842,3638.8,3638.7,40.8]
[1736257217869,0.27483,3638.7,3638.0,0.27488]
[1736257218072,2.20993878,3638.4,3637.9,3.2078]
[1736257218380,2.48479878,3638.4,3638.1,40.8]
[1736257218579,0.4496,3638.3,3638.1,40.8]
[1736257220278,0.72446,3638.3,3638.1,40.8]
[1736257220678,0.4496,3638.3,3638.1,40.8]
[1736257222581,0.72446,3638.3,3638.1,40.8]
[1736257222777,2.48480878,3638.2,3638.1,40.8]
[1736257223171,2.48480878,3638.2,3637.3,3.6585]
[1736257223172,0.27491,3637.8,3637.3,3.6585]
[1736257223375,0.8984,3637.7,3637.4,0.27493]
[1736257223577,2.20993878,3637.6,3637.5,40.8]
[1736257224681,1.17331,3637.7,3637.5,40.8]
[1736257225485,0.8984,3637.7,3637.5,40.8]
[1736257226685,0.8984,3637.7,3637.6,0.27492]
[1736257227681,0.8984,3637.7,3637.5,41.07492]
[1736257228281,0.8984,3637.7,3637.5,40.8]
[1736257228483,0.8984,3637.7,3637.5,41.07492]
[1736257228789,0.8984,3637.7,3637.6,0.27492]
[1736257231187,0.8984,3637.7,3637.5,40.8]
[1736257231587,0.8984,3637.7,3637.5,41.07492]
[1736257232186,0.8984,3637.7,3637.5,40.8]
[1736257232390,1.17331,3637.7,3637.5,40.8]
[1736257232788,2.48485878,3637.6,3637.5,40.8]
[1736257233493,2.48485878,3637.6,3637.1,3.2078]
[1736257233494,2.20993878,3637.6,3637.1,3.2078]
[1736257233691,0.27494,3637.3,3637.1,3.48275]
[1736257233897,0.4171,3637.2,3637.1,3.48275]
[1736257234092,0.8576,3637.2,3637.1,3.48275]
[1736257234492,0.8576,3637.2,3637.1,44.28275]
[1736257236691,0.8576,3637.2,3637.1,44.0078]
[1736257236897,0.8576,3637.2,3637.1,44.28275]
[1736257241899,0.4405,3637.2,3637.1,44.28275]
[1736257242697,0.4405,3637.2,3637.1,41.07495]
[1736257243591,0.4594,3637.5,3637.1,40.8]
[1736257243793,0.27494,3637.3,3637.1,41.07495]
[1736257244199,0.455,3637.4,3637.1,41.07495]
[1736257244401,0.27495,3637.2,3637.1,41.07495]
[1736257245399,0.27494,3637.3,3637.1,41.07495]
[1736257245792,0.455,3637.4,3637.1,40.8]
[1736257246102,0.455,3637.4,3637.3,0.27494]
[1736257246496,0.72994,3637.4,3637.2,1.15154]
[1736257246700,0.27494,3637.3,3637.2,1.15154]
[1736257247002,0.72993,3637.4,3637.3,0.27494]
[1736257248403,0.27495,3637.3,3637.2,0.27494]
[1736257248602,0.27495,3637.2,3637.1,41.07495]
[1736257249102,0.27494,3637.3,3637.2,0.27494]